fUST/lending_fUST_20250910
["ID","MTS","AMOUNT","RATE_DAILY","PERIOD"]
[384494601,1757443833358,-614.04,0.00013698,2]
[384494603,1757443833368,-480.0,0.00013698,2]
[384494605,1757443833377,-509.24,0.00013698,2]
[384494607,1757443833387,-480.0,0.00013698,2]
[384494609,1757443833397,-480.0,0.00013698,2]
[384494611,1757443833407,-480.0,0.00013698,2]
[384494613,1757443833416,-480.0,0.00013698,2]
[384494615,1757443833426,-480.0,0.00013698,2]
[384494617,1757443833435,-480.0,0.00013698,2]
[384494619,1757443833447,-480.0,0.00013698,2]
[384494621,1757443833456,-480.0,0.00013698,2]
[384494623,1757443833466,-480.0,0.00013698,2]
[384494625,1757443833475,-480.0,0.00013698,2]
[384494627,1757443833485,-904.02,0.00013698,2]
[384494629,1757443833494,-480.0,0.00013698,2]
[384494631,1757443833503,-480.0,0.00013698,2]
[384494633,1757443833513,-622.69,0.00013698,2]
[384494635,1757443833525,-480.0,0.00013698,2]
[384494637,1757443833534,-480.0,0.00013698,2]
[384494639,1757443833544,-1250.18,0.00013698,2]
[384494641,1757443833554,-480.0,0.00013698,2]
[384494644,1757443833564,-553.77,0.00013698,2]
[384494646,1757443833574,-546.45,0.00013698,2]
[384494648,1757443833583,-761.81,0.00013698,2]
[384494650,1757443833593,-480.0,0.00013698,2]
[384494652,1757443833603,-784.25,0.00013698,2]
[384494654,1757443833612,-807.04,0.00013698,2]
[384494656,1757443833622,-554.2,0.00013698,2]
[384494658,1757443833632,-446.47887486,0.00013698,2]
[384494659,1757443833641,-480.0,0.00013698,2]
[384494660,1757443833651,-480.0,0.00013698,2]
[384494661,1757443833662,-480.0,0.00013698,2]
[384494662,1757443833672,-1959.84,0.00013698,2]
[384494664,1757443833681,-480.0,0.00013698,2]
[384494666,1757443833691,-480.0,0.00013698,2]
[384494668,1757443833702,-480.0,0.00013698,2]
[384494670,1757443833712,-480.0,0.00013698,2]
[384494672,1757443833721,-480.0,0.00013698,2]
[384494674,1757443833731,-533.0,0.00013698,2]
[384494676,1757443833741,-650.96,0.00013698,2]
[384494678,1757443833750,-480.0,0.00013698,2]
[384494680,1757443833760,-480.0,0.00013698,2]
[384494682,1757443833770,-480.0,0.00013698,2]
[384494684,1757443833779,-557.28,0.00013698,2]
[384494686,1757443833788,-676.39,0.00013698,2]
[384494688,1757443833798,-480.0,0.00013698,2]
[384494689,1757443833807,-480.0,0.00013698,2]
[384494690,1757443833816,-480.0,0.00013698,2]
[384494691,1757443833825,-480.0,0.00013698,2]
[384494692,1757443833834,-480.0,0.00013698,2]
[384494693,1757443833844,-480.0,0.00013698,2]
[384494694,1757443833853,-480.0,0.00013698,2]
[384494695,1757443833862,-677.0,0.00013698,2]
[384494696,1757443833872,-480.0,0.00013698,2]
[384494697,1757443833882,-480.0,0.00013698,2]
[384494698,1757443833892,-923.74,0.00013698,2]
[384494699,1757443833902,-480.0,0.00013698,2]
[384494700,1757443833911,-537.43538843,0.00013698,2]
[384494701,1757443833921,-480.0,0.00013698,2]
[384494702,1757443833930,-480.0,0.00013698,2]
[384494703,1757443833940,-480.0,0.00013698,2]
[384494704,1757443833949,-480.0,0.00013698,2]
[384494705,1757443833959,-885.52,0.00013698,2]
[384494706,1757443833968,-523.29134051,0.00013698,2]
[384494707,1757443833978,-480.0,0.00013698,2]
[384494708,1757443833987,-2938.60343606,0.00013698,2]
[384494709,1757443834001,-665.24656394,0.00013698,2]
[384494710,1757443834011,-538.06,0.00013698,2]
[384494711,1757443834020,-480.0,0.00013698,2]
[384494712,1757443834030,-480.0,0.00013698,2]
[384494713,1757443834039,-480.0,0.00013698,2]
[384494714,1757443834049,-1969.9,0.00013698,2]
[384494715,1757443834060,-480.0,0.00013698,2]
[384494716,1757443834069,-795.7,0.00013698,2]
[384494717,1757443834079,-480.0,0.00013698,2]
[384494718,1757443834090,-480.0,0.00013698,2]
[384494719,1757443834101,-480.0,0.00013698,2]
[384494720,1757443834111,-480.0,0.00013698,2]
[384494721,1757443834120,-781.1,0.00013698,2]
[384494722,1757443834130,-480.0,0.00013698,2]
[384494723,1757443834140,-480.0,0.00013698,2]
[384494724,1757443834150,-480.0,0.00013698,2]
[384494725,1757443834160,-480.0,0.00013698,2]
[384494726,1757443834169,-657.66,0.00013698,2]
[384494727,1757443834178,-480.0,0.00013698,2]
[384494728,1757443834188,-480.0,0.00013698,2]
[384494729,1757443834198,-1874.63,0.00013698,2]
[384494730,1757443834207,-28219.64,0.00013698,2]
[384494731,1757443834217,-791.99,0.00013698,2]
[384494732,1757443834227,-420.73110936,0.00013698,2]
[384494733,1757443834400,-480.0,0.00013698,2]
[384494734,1757443834411,-480.0,0.00013698,2]
[384494735,1757443834420,-480.0,0.00013698,2]
[384494736,1757443834429,-244.29841196,0.00013698,2]
[384494737,1757443834439,-3051.78,0.00013698,2]
[384494738,1757443834453,-480.0,0.00013698,2]
[384494739,1757443834462,-1084.68,0.00013698,2]
[384494740,1757443834471,-480.0,0.00013698,2]
[384494741,1757443834486,-480.0,0.00013698,2]
[384494742,1757443834503,-480.0,0.00013698,2]
[384494743,1757443834513,-480.0,0.00013698,2]
[384494744,1757443834524,-2536.77,0.00013698,2]
[384494745,1757443834534,-3224.84,0.00013698,2]
[384494746,1757443834543,-480.0,0.00013698,2]
[384494747,1757443834553,-614.55,0.00013698,2]
[384494748,1757443834563,-751.89,0.00013698,2]
[384494749,1757443834572,-480.0,0.00013698,2]
[384494750,1757443834581,-642.55,0.00013698,2]
[384494751,1757443834590,-1914.12,0.00013698,2]
[384494752,1757443834599,-803.47,0.00013698,2]
[384494753,1757443834609,-480.0,0.00013698,2]
[384494754,1757443834618,-1401.77,0.00013698,2]
[384494755,1757443834628,-480.0,0.00013698,2]
[384494756,1757443834638,-480.0,0.00013698,2]
[384494757,1757443834648,-730.81,0.00013698,2]
[384494758,1757443834658,-480.0,0.00013698,2]
[384494759,1757443834667,-480.0,0.00013698,2]
[384494760,1757443834677,-1086.25,0.00013698,2]
[384494761,1757443834686,-1319.73,0.00013698,2]
[384494762,1757443834696,-459.88488633,0.00013698,2]
[384494763,1757443834706,-852.95,0.00013698,2]
[384494764,1757443834715,-480.0,0.00013698,2]
[384494765,1757443834725,-480.0,0.00013698,2]
[384494766,1757443834734,-480.0,0.00013698,2]
[384494767,1757443834744,-480.0,0.00013698,2]
[384494768,1757443834754,-2181.14,0.00013698,2]
[384494769,1757443834763,-480.0,0.00013698,2]
[384494770,1757443834773,-480.0,0.00013698,2]
[384494771,1757443834783,-527.53,0.00013698,2]
[384494772,1757443834792,-480.0,0.00013698,2]
[384494773,1757443834801,-566.3,0.00013698,2]
[384494774,1757443834811,-687.81,0.00013698,2]
[384494775,1757443834820,-480.0,0.00013698,2]
[384494776,1757443834830,-480.0,0.00013698,2]
[384494777,1757443834839,-480.0,0.00013698,2]
[384494778,1757443834848,-480.0,0.00013698,2]
[384494779,1757443834857,-609.96,0.00013698,2]
[384494780,1757443834867,-866.26,0.00013698,2]
[384494781,1757443834876,-480.0,0.00013698,2]
[384494782,1757443834885,-973.44,0.00013698,2]
[384494783,1757443834895,-480.0,0.00013698,2]
[384494784,1757443834905,-480.0,0.00013698,2]
[384494785,1757443834914,-480.0,0.00013698,2]
[384494786,1757443834924,-480.0,0.00013698,2]
[384494787,1757443834933,-480.0,0.00013698,2]
[384494788,1757443834943,-1328.14,0.00013698,2]
[384494789,1757443834952,-845.36,0.00013698,2]
[384494790,1757443834961,-480.0,0.00013698,2]
[384494791,1757443834971,-902.77,0.00013698,2]
[384494792,1757443834980,-480.0,0.00013698,2]
[384494793,1757443834989,-1645.72,0.00013698,2]
[384494794,1757443834999,-480.0,0.00013698,2]
[384494795,1757443835008,-480.0,0.00013698,2]
[384494796,1757443835017,-2137.86,0.00013698,2]
[384494797,1757443835027,-480.0,0.00013698,2]
[384494798,1757443835036,-608.48,0.00013698,2]
[384494799,1757443835045,-998.72,0.00013698,2]
[384494800,1757443835055,-480.0,0.00013698,2]
[384494801,1757443835064,-480.0,0.00013698,2]
[384494802,1757443835073,-480.0,0.00013698,2]
[384494803,1757443835083,-480.0,0.00013698,2]
[384494804,1757443835092,-2890.01,0.00013698,2]
[384494805,1757443835101,-669.27,0.00013698,2]
[384494806,1757443835112,-480.0,0.00013698,2]
[384494807,1757443835121,-480.0,0.00013698,2]
[384494808,1757443835130,-480.0,0.00013698,2]
[384494809,1757443835139,-550.06,0.00013698,2]
[384494810,1757443835149,-5787.29183182,0.00013698,2]
[384494824,1757443838411,-467.78343142,0.00013698,2]
[384494825,1757443838423,-3033.57473676,0.00013698,2]
[384494826,1757443838432,-480.0,0.00013698,2]
[384494827,1757443838442,-751.05,0.00013698,2]
[384494828,1757443838454,-547.17,0.00013698,2]
[384494829,1757443838463,-480.0,0.00013698,2]
[384494830,1757443838473,-480.0,0.00013698,2]
[384494831,1757443838482,-1112.45,0.00013698,2]
[384494832,1757443838493,-1235.2,0.00013698,2]
[384494833,1757443838502,-1043.0,0.00013698,2]
[384494834,1757443838511,-875.02,0.00013698,2]
[384494835,1757443838522,-4822.73,0.00013698,2]
[384494836,1757443838531,-1120.76179161,0.00013698,2]
[384494838,1757443838542,-1349.52,0.00013698,2]
[384494882,1757443840787,-1290.81820839,0.00013698,2]
[384494883,1757443840797,-1442.08,0.00013698,2]
[384494884,1757443840806,-4997.95,0.00013698,2]
[384494885,1757443840816,-480.0,0.00013698,2]
[384494886,1757443840826,-560.13,0.00013698,2]
[384494887,1757443840835,-1017.88,0.00013698,2]
[384494888,1757443840845,-480.0,0.00013698,2]
[384494889,1757443840854,-480.0,0.00013698,2]
[384494890,1757443840863,-480.0,0.00013698,2]
[384494891,1757443840872,-480.0,0.00013698,2]
[384494892,1757443840882,-748.55,0.00013698,2]
[384494893,1757443840891,-500.0,0.00013698,2]
[384494894,1757443840900,-262.35049966,0.00013699,2]
[384494915,1757443843565,-480.0,0.00013698,2]
[384494916,1757443843575,-760.31784534,0.00013699,2]
[384494917,1757443843585,-155.26899005,0.00013735,2]
[384494918,1757443843595,-10578.81621497,0.00013741,2]
[384494919,1757443843604,-160.0,0.00013799,2]
[384494920,1757443843614,-160.0,0.00013799,2]
[384494921,1757443843623,-203.28455737,0.00013799,2]
[384494922,1757443843633,-530.79566296,0.00013799,2]
[384494923,1757443843642,-417.15472785,0.00013799,2]
[384494924,1757443843652,-160.0,0.00013799,2]
[384494925,1757443843662,-217.65034598,0.00013799,2]
[384494926,1757443843671,-160.0,0.00013799,2]
[384494927,1757443843681,-846.80158213,0.00013799,2]
[384494928,1757443843691,-233.05759179,0.00013799,2]
[384494929,1757443843700,-160.0,0.00013799,2]
[384494930,1757443843709,-155.26899005,0.00013872,2]
[384494931,1757443843719,-584.73676046,0.00013872,2]
[384494932,1757443843728,-240.047,0.00013906,2]
[384494933,1757443843737,-976.0,0.00013957,2]
[384494934,1757443843746,-634.0,0.00013957,2]
[384494935,1757443843755,-2154.0,0.00013957,2]
[384494937,1757443843765,-150.0,0.00013957,2]
[384494939,1757443843775,-300.0,0.00013971,2]
[384494941,1757443843784,-300.0,0.00013971,2]
[384494943,1757443843793,-300.0,0.00013971,2]
[384494945,1757443843802,-300.0,0.00013971,2]
[384494947,1757443843811,-300.0,0.00013971,2]
[384494949,1757443843820,-300.0,0.00013971,2]
[384494950,1757443843829,-300.0,0.00013971,2]
[384494951,1757443843838,-300.0,0.00013971,2]
[384494952,1757443843848,-300.0,0.00013971,2]
[384494953,1757443843857,-300.0,0.00013971,2]
[384494954,1757443843867,-300.0,0.00013971,2]
[384494955,1757443843876,-300.0,0.00013971,2]
[384494956,1757443843885,-300.0,0.00013971,2]
[384494957,1757443843895,-300.0,0.00013971,2]
[384494958,1757443843905,-300.0,0.00013971,2]
[384494959,1757443843915,-600.0,0.00013971,2]
[384494960,1757443843924,-480.0,0.00013972,2]
[384494961,1757443843933,-480.0,0.00013972,2]
[384494962,1757443843942,-480.0,0.00013972,2]
[384494963,1757443843951,-614.04,0.00013972,2]
[384494964,1757443843960,-185.50753057,0.00013972,2]
[384494965,1757443843969,-509.24,0.00013972,2]
[384494966,1757443843978,-480.0,0.00013972,2]
[384494967,1757443843987,-480.0,0.00013972,2]
[384494968,1757443843997,-480.0,0.00013972,2]
[384494969,1757443844008,-480.0,0.00013972,2]
[384494970,1757443844017,-622.69,0.00013972,2]
[384494971,1757443844027,-480.0,0.00013972,2]
[384494972,1757443844036,-1250.18,0.00013972,2]
[384494973,1757443844045,-480.0,0.00013972,2]
[384494974,1757443844054,-553.77,0.00013972,2]
[384494975,1757443844064,-546.45,0.00013972,2]
[384494976,1757443844073,-761.81,0.00013972,2]
[384494977,1757443844082,-480.0,0.00013972,2]
[384494978,1757443844091,-784.25,0.00013972,2]
[384494979,1757443844100,-807.04,0.00013972,2]
[384494980,1757443844109,-554.2,0.00013972,2]
[384494981,1757443844118,-151.0,0.00013972,2]
[384494982,1757443844127,-151.0,0.00013972,2]
[384494983,1757443844136,-480.0,0.00013972,2]
[384494984,1757443844147,-480.0,0.00013972,2]
[384494985,1757443844156,-1959.84,0.00013972,2]
[384494986,1757443844165,-480.0,0.00013972,2]
[384494987,1757443844175,-480.0,0.00013972,2]
[384494988,1757443844184,-151.0,0.00013972,2]
[384494989,1757443844193,-480.0,0.00013972,2]
[384494990,1757443844202,-193.84988208,0.00013972,2]
[384494991,1757443844211,-480.0,0.00013972,2]
[384494992,1757443844220,-533.0,0.00013972,2]
[384494993,1757443844230,-650.96,0.00013972,2]
[384494994,1757443844239,-480.0,0.00013972,2]
[384494995,1757443844248,-480.0,0.00013972,2]
[384494996,1757443844257,-557.28,0.00013972,2]
[384494997,1757443844267,-676.39,0.00013972,2]
[384494998,1757443844276,-480.0,0.00013972,2]
[384494999,1757443844286,-480.0,0.00013972,2]
[384495000,1757443844296,-480.0,0.00013972,2]
[384495001,1757443844307,-492.94140847,0.00013972,2]
[384495002,1757443844317,-480.0,0.00013972,2]
[384495003,1757443844326,-480.0,0.00013972,2]
[384495004,1757443844336,-677.0,0.00013972,2]
[384495005,1757443844345,-480.0,0.00013972,2]
[384495006,1757443844355,-480.0,0.00013972,2]
[384495007,1757443844364,-923.74,0.00013972,2]
[384495008,1757443844374,-359.17,0.00013972,2]
[384495009,1757443844384,-208.50856281,0.00013972,2]
[384495010,1757443844393,-480.0,0.00013972,2]
[384495011,1757443844403,-480.0,0.00013972,2]
[384495012,1757443844412,-885.52,0.00013972,2]
[384495013,1757443844422,-480.0,0.00013972,2]
[384495014,1757443844431,-3603.85,0.00013972,2]
[384495015,1757443844441,-538.06,0.00013972,2]
[384495016,1757443844606,-512.89,0.00013972,2]
[384495017,1757443844617,-480.0,0.00013972,2]
[384495018,1757443844627,-480.0,0.00013972,2]
[384495019,1757443844637,-480.0,0.00013972,2]
[384495020,1757443844646,-795.7,0.00013972,2]
[384495021,1757443844656,-151.0,0.00013972,2]
[384495022,1757443844665,-480.0,0.00013972,2]
[384495023,1757443844675,-151.0,0.00013972,2]
[384495025,1757443844684,-480.0,0.00013972,2]
[384495026,1757443844694,-1000.0,0.00013972,2]
[384495027,1757443844703,-175.26,0.00013972,2]
[384495029,1757443844714,-480.0,0.00013972,2]
[384495030,1757443844724,-480.0,0.00013972,2]
[384495031,1757443844734,-480.0,0.00013972,2]
[384495032,1757443844744,-480.0,0.00013972,2]
[384495033,1757443844754,-657.66,0.00013972,2]
[384495034,1757443844763,-480.0,0.00013972,2]
[384495035,1757443844773,-480.0,0.00013972,2]
[384495036,1757443844783,-1874.63,0.00013972,2]
[384495037,1757443844793,-28219.64,0.00013972,2]
[384495038,1757443844803,-791.99,0.00013972,2]
[384495039,1757443844812,-480.0,0.00013972,2]
[384495040,1757443844821,-480.0,0.00013972,2]
[384495041,1757443844830,-3051.78,0.00013972,2]
[384495042,1757443844840,-162.51787328,0.00013972,2]
[384495043,1757443844849,-1084.68,0.00013972,2]
[384495044,1757443844858,-480.0,0.00013972,2]
[384495045,1757443844868,-480.0,0.00013972,2]
[384495046,1757443844877,-2536.77,0.00013972,2]
[384495047,1757443844886,-3224.84,0.00013972,2]
[384495048,1757443844896,-151.0,0.00013972,2]
[384495049,1757443844905,-480.0,0.00013972,2]
[384495050,1757443844915,-151.0,0.00013972,2]
[384495051,1757443844924,-614.55,0.00013972,2]
[384495052,1757443844933,-751.89,0.00013972,2]
[384495053,1757443844943,-480.0,0.00013972,2]
[384495054,1757443844952,-642.55,0.00013972,2]
[384495055,1757443844961,-1914.12,0.00013972,2]
[384495056,1757443844970,-151.0,0.00013972,2]
[384495057,1757443844979,-151.0,0.00013972,2]
[384495058,1757443844988,-803.47,0.00013972,2]
[384495059,1757443844998,-480.0,0.00013972,2]
[384495060,1757443845007,-1401.77,0.00013972,2]
[384495061,1757443845016,-480.0,0.00013972,2]
[384495062,1757443845026,-480.0,0.00013972,2]
[384495063,1757443845035,-730.81,0.00013972,2]
[384495064,1757443845045,-480.0,0.00013972,2]
[384495065,1757443845054,-1086.25,0.00013972,2]
[384495066,1757443845063,-1319.73,0.00013972,2]
[384495067,1757443845073,-852.95,0.00013972,2]
[384495068,1757443845083,-151.0,0.00013972,2]
[384495069,1757443845092,-480.0,0.00013972,2]
[384495070,1757443845101,-480.0,0.00013972,2]
[384495071,1757443845111,-151.0,0.00013972,2]
[384495072,1757443845120,-480.0,0.00013972,2]
[384495073,1757443845129,-2181.14,0.00013972,2]
[384495074,1757443845139,-480.0,0.00013972,2]
[384495075,1757443845148,-480.0,0.00013972,2]
[384495076,1757443845158,-527.53,0.00013972,2]
[384495077,1757443845167,-566.3,0.00013972,2]
[384495078,1757443845176,-687.81,0.00013972,2]
[384495079,1757443845185,-480.0,0.00013972,2]
[384495080,1757443845195,-480.0,0.00013972,2]
[384495081,1757443845204,-151.0,0.00013972,2]
[384495082,1757443845214,-151.0,0.00013972,2]
[384495083,1757443845225,-609.96,0.00013972,2]
[384495084,1757443845235,-151.0,0.00013972,2]
[384495085,1757443845245,-151.0,0.00013972,2]
[384495086,1757443845254,-151.0,0.00013972,2]
[384495087,1757443845263,-151.0,0.00013972,2]
[384495088,1757443845273,-201.800608,0.00013972,2]
[384495089,1757443845282,-866.26,0.00013972,2]
[384495090,1757443845291,-480.0,0.00013972,2]
[384495091,1757443845300,-973.44,0.00013972,2]
[384495092,1757443845311,-480.0,0.00013972,2]
[384495093,1757443845320,-480.0,0.00013972,2]
[384495094,1757443845330,-845.36,0.00013972,2]
[384495095,1757443845339,-1328.14,0.00013972,2]
[384495096,1757443845348,-480.0,0.00013972,2]
[384495097,1757443845357,-902.77,0.00013972,2]
[384495098,1757443845366,-480.0,0.00013972,2]
[384495099,1757443845376,-1645.72,0.00013972,2]
[384495100,1757443845385,-480.0,0.00013972,2]
[384495101,1757443845394,-2137.86,0.00013972,2]
[384495102,1757443845404,-480.0,0.00013972,2]
[384495103,1757443845413,-608.48,0.00013972,2]
[384495104,1757443845423,-998.72,0.00013972,2]
[384495105,1757443845432,-480.0,0.00013972,2]
[384495106,1757443845441,-480.0,0.00013972,2]
[384495107,1757443845455,-2890.01,0.00013972,2]
[384495108,1757443845465,-669.27,0.00013972,2]
[384495109,1757443845474,-480.0,0.00013972,2]
[384495110,1757443845484,-480.0,0.00013972,2]
[384495111,1757443845494,-480.0,0.00013972,2]
[384495112,1757443845504,-550.06,0.00013972,2]
[384495113,1757443845513,-9288.65,0.00013972,2]
[384495114,1757443845523,-480.0,0.00013972,2]
[384495115,1757443845533,-751.05,0.00013972,2]
[384495116,1757443845543,-547.17,0.00013972,2]
[384495117,1757443845553,-480.0,0.00013972,2]
[384495118,1757443845562,-480.0,0.00013972,2]
[384495119,1757443845571,-151.0,0.00013972,2]
[384495120,1757443845581,-1112.45,0.00013972,2]
[384495121,1757443845590,-1235.2,0.00013972,2]
[384495122,1757443845600,-1043.0,0.00013972,2]
[384495123,1757443845610,-169.326286,0.00013972,2]
[384495124,1757443845619,-875.02,0.00013972,2]
[384495125,1757443845629,-4822.73,0.00013972,2]
[384495126,1757443845638,-3761.1,0.00013972,2]
[384495127,1757443845648,-1442.08,0.00013972,2]
[384495128,1757443845657,-4997.95,0.00013972,2]
[384495129,1757443845667,-480.0,0.00013972,2]
[384495130,1757443845676,-560.13,0.00013972,2]
[384495131,1757443845685,-1017.88,0.00013972,2]
[384495132,1757443845694,-480.0,0.00013972,2]
[384495133,1757443845704,-480.0,0.00013972,2]
[384495134,1757443845713,-480.0,0.00013972,2]
[384495135,1757443845723,-480.0,0.00013972,2]
[384495136,1757443845732,-748.55,0.00013972,2]
[384495137,1757443845742,-500.0,0.00013972,2]
[384495138,1757443845751,-500.0,0.00013973,2]
[384495139,1757443845760,-500.0,0.00013973,2]
[384495140,1757443845769,-500.0,0.00013973,2]
[384495141,1757443845779,-500.0,0.00013973,2]
[384495142,1757443845788,-500.0,0.00013973,2]
[384495143,1757443845798,-500.0,0.00013973,2]
[384495144,1757443845808,-500.0,0.00013973,2]
[384495145,1757443845817,-100000.0,0.0001399,2]
[384495146,1757443845827,-151.0,0.0001399,2]
[384495147,1757443845837,-151.0,0.0001399,2]
[384495148,1757443845847,-151.0,0.0001399,2]
[384495149,1757443845856,-151.0,0.0001399,2]
[384495150,1757443845865,-250.10811194,0.00014099,2]
[384495151,1757443845875,-306.74766459,0.00014157,2]
[384495152,1757443845884,-168.0,0.00014181,2]
[384495153,1757443845894,-151.0,0.000142,2]
[384495154,1757443845904,-800.0,0.00014204,2]
[384495155,1757443845913,-480.0,0.00014246,2]
[384495156,1757443845923,-480.0,0.00014246,2]
[384495157,1757443845932,-480.0,0.00014246,2]
[384495158,1757443845941,-614.04,0.00014246,2]
[384495159,1757443845951,-509.24,0.00014246,2]
[384495160,1757443845960,-378.03733248,0.00014246,2]
[384495161,1757443845969,-480.0,0.00014246,2]
[384495162,1757443845979,-480.0,0.00014246,2]
[384495163,1757443845989,-480.0,0.00014246,2]
[384495164,1757443845999,-622.69,0.00014246,2]
[384495165,1757443846009,-480.0,0.00014246,2]
[384495166,1757443846019,-1250.18,0.00014246,2]
[384495168,1757443846029,-480.0,0.00014246,2]
[384495170,1757443846039,-553.77,0.00014246,2]
[384495172,1757443846049,-546.45,0.00014246,2]
[384495174,1757443846059,-761.81,0.00014246,2]
[384495176,1757443846069,-480.0,0.00014246,2]
[384495178,1757443846079,-784.25,0.00014246,2]
[384495180,1757443846090,-807.04,0.00014246,2]
[384495182,1757443846101,-554.2,0.00014246,2]
[384495183,1757443846112,-480.0,0.00014246,2]
[384495184,1757443846122,-1959.84,0.00014246,2]
[384495185,1757443846132,-480.0,0.00014246,2]
[384495186,1757443846141,-480.0,0.00014246,2]
[384495188,1757443846150,-480.0,0.00014246,2]
[384495190,1757443846159,-480.0,0.00014246,2]
[384495191,1757443846168,-533.0,0.00014246,2]
[384495193,1757443846177,-650.96,0.00014246,2]
[384495195,1757443846185,-480.0,0.00014246,2]
[384495196,1757443846194,-480.0,0.00014246,2]
[384495198,1757443846204,-557.28,0.00014246,2]
[384495200,1757443846214,-676.39,0.00014246,2]
[384495201,1757443846223,-480.0,0.00014246,2]
[384495202,1757443846232,-480.0,0.00014246,2]
[384495203,1757443846242,-480.0,0.00014246,2]
[384495204,1757443846251,-480.0,0.00014246,2]
[384495206,1757443846259,-677.0,0.00014246,2]
[384495208,1757443846269,-480.0,0.00014246,2]
[384495210,1757443846278,-480.0,0.00014246,2]
[384495212,1757443846287,-923.74,0.00014246,2]
[384495214,1757443846296,-480.0,0.00014246,2]
[384495216,1757443846306,-480.0,0.00014246,2]
[384495218,1757443846315,-885.52,0.00014246,2]
[384495220,1757443846325,-480.0,0.00014246,2]
[384495222,1757443846334,-3603.85,0.00014246,2]
[384495224,1757443846343,-538.06,0.00014246,2]
[384495226,1757443846352,-480.0,0.00014246,2]
[384495228,1757443846361,-795.7,0.00014246,2]
[384495230,1757443846371,-480.0,0.00014246,2]
[384495232,1757443846380,-480.0,0.00014246,2]
[384495234,1757443846389,-480.0,0.00014246,2]
[384495236,1757443846398,-480.0,0.00014246,2]
[384495238,1757443846407,-480.0,0.00014246,2]
[384495240,1757443846417,-480.0,0.00014246,2]
[384495242,1757443846426,-657.66,0.00014246,2]
[384495244,1757443846436,-480.0,0.00014246,2]
[384495246,1757443846445,-480.0,0.00014246,2]
[384495247,1757443846455,-1874.63,0.00014246,2]
[384495250,1757443846469,-28219.64,0.00014246,2]
[384495252,1757443846479,-791.99,0.00014246,2]
[384495253,1757443846488,-480.0,0.00014246,2]
[384495256,1757443846498,-480.0,0.00014246,2]
[384495258,1757443846509,-3051.78,0.00014246,2]
[384495260,1757443846518,-1084.68,0.00014246,2]
[384495261,1757443846528,-480.0,0.00014246,2]
[384495263,1757443846540,-2536.77,0.00014246,2]
[384495265,1757443846549,-3224.84,0.00014246,2]
[384495267,1757443846560,-614.55,0.00014246,2]
[384495269,1757443846569,-751.89,0.00014246,2]
[384495271,1757443846579,-611.82462032,0.00014246,2]
[384495273,1757443846589,-642.55,0.00014246,2]
[384495275,1757443846598,-1914.12,0.00014246,2]
[384495277,1757443846609,-151.0,0.00014246,2]
[384495279,1757443846619,-803.47,0.00014246,2]